fUST/lending_fUST_20240517
["ID","MTS","AMOUNT","RATE_DAILY","PERIOD"]
[327175127,1715878240386,-421.254764,0.00016438,2]
[327175129,1715878240395,-421.254764,0.00016438,2]
[327175131,1715878240404,-151.0,0.00016438,2]
[327175133,1715878240413,-421.254764,0.00016438,2]
[327175135,1715878240423,-151.0,0.00016438,2]
[327175137,1715878240432,-421.254764,0.00016438,2]
[327175139,1715878240442,-522.3,0.00016438,2]
[327175141,1715878240451,-850.67,0.00016438,2]
[327175143,1715878240461,-421.254764,0.00016438,2]
[327175145,1715878240470,-500.0,0.00016438,2]
[327175147,1715878240479,-421.254764,0.00016438,2]
[327175149,1715878240488,-421.254764,0.00016438,2]
[327175151,1715878240497,-421.254764,0.00016438,2]
[327175153,1715878240507,-421.254764,0.00016438,2]
[327175155,1715878240517,-500.0,0.00016438,2]
[327175156,1715878240529,-421.254764,0.00016438,2]
[327175158,1715878240538,-421.254764,0.00016438,2]
[327175160,1715878240548,-500.0,0.00016438,2]
[327175162,1715878240557,-421.254764,0.00016438,2]
[327175164,1715878240567,-421.254772,0.00016438,2]
[327175166,1715878240578,-504.91780053,0.00016438,2]
[327175168,1715878240588,-500.0,0.00016438,2]
[327175170,1715878240598,-608.82,0.00016438,2]
[327175172,1715878240607,-508.04538251,0.00016438,2]
[327175174,1715878240617,-609.43,0.00016438,2]
[327175176,1715878240626,-500.0,0.00016438,2]
[327175178,1715878240635,-500.0,0.00016438,2]
[327175180,1715878240645,-500.0,0.00016438,2]
[327175182,1715878240654,-500.0,0.00016438,2]
[327175184,1715878240663,-992.96,0.00016438,2]
[327175186,1715878240673,-523.49,0.00016438,2]
[327175188,1715878240682,-496.78515676,0.00016438,2]
[327175190,1715878240691,-500.0,0.00016438,2]
[327175192,1715878240700,-500.0,0.00016438,2]
[327175194,1715878240709,-500.0,0.00016438,2]
[327175196,1715878240718,-500.0,0.00016438,2]
[327175198,1715878240728,-430.25632198,0.00016438,2]
[327175200,1715878240737,-510.51549221,0.00016438,2]
[327175202,1715878240746,-500.0,0.00016438,2]
[327175204,1715878240755,-500.0,0.00016438,2]
[327175206,1715878240764,-500.0,0.00016438,2]
[327175208,1715878240783,-500.0,0.00016438,2]
[327175210,1715878240792,-500.0,0.00016438,2]
[327175212,1715878240801,-500.0,0.00016438,2]
[327175214,1715878240811,-787.36,0.00016438,2]
[327175216,1715878240822,-500.0,0.00016438,2]
[327175218,1715878240831,-500.0,0.00016438,2]
[327175220,1715878240840,-500.0,0.00016438,2]
[327175222,1715878240851,-500.0,0.00016438,2]
[327175224,1715878240859,-500.0,0.00016438,2]
[327175226,1715878240868,-500.0,0.00016438,2]
[327175227,1715878240877,-500.0,0.00016438,2]
[327175229,1715878240886,-500.0,0.00016438,2]
[327175231,1715878240895,-500.0,0.00016438,2]
[327175233,1715878240904,-500.0,0.00016438,2]
[327175235,1715878240913,-2110.54,0.00016438,2]
[327175237,1715878240922,-500.0,0.00016438,2]
[327175239,1715878240932,-345.36765703,0.00016438,2]
[327175241,1715878240941,-508.61465768,0.00016438,2]
[327175243,1715878240950,-500.0,0.00016438,2]
[327175245,1715878240960,-500.0,0.00016438,2]
[327175247,1715878240969,-1085.29,0.00016438,2]
[327175249,1715878240978,-500.0,0.00016438,2]
[327175251,1715878240987,-500.0,0.00016438,2]
[327175253,1715878240996,-500.0,0.00016438,2]
[327175255,1715878241006,-718.29,0.00016438,2]
[327175257,1715878241015,-500.0,0.00016438,2]
[327175259,1715878241025,-516.23,0.00016438,2]
[327175261,1715878241034,-500.0,0.00016438,2]
[327175263,1715878241044,-500.0,0.00016438,2]
[327175265,1715878241053,-583.83,0.00016438,2]
[327175267,1715878241062,-363.94423971,0.00016438,2]
[327175269,1715878241072,-500.0,0.00016438,2]
[327175271,1715878241081,-973.82,0.00016438,2]
[327175273,1715878241090,-500.0,0.00016438,2]
[327175275,1715878241099,-500.0,0.00016438,2]
[327175277,1715878241108,-449.0677009,0.00016438,2]
[327175279,1715878241117,-151.0,0.00016438,2]
[327175281,1715878241126,-500.0,0.00016438,2]
[327175283,1715878241135,-500.0,0.00016438,2]
[327175285,1715878241144,-151.0,0.00016438,2]
[327175287,1715878241153,-939.78,0.00016438,2]
[327175289,1715878241163,-151.0,0.00016438,2]
[327175291,1715878241172,-151.0,0.00016438,2]
[327175293,1715878241181,-151.0,0.00016438,2]
[327175295,1715878241190,-164.354075,0.00016438,2]
[327175297,1715878241199,-500.0,0.00016438,2]
[327175299,1715878241208,-501.91884888,0.00016438,2]
[327175301,1715878241217,-500.0,0.00016438,2]
[327175303,1715878241226,-293.99711936,0.00016438,2]
[327175305,1715878241235,-507.14753612,0.00016438,2]
[327175307,1715878241245,-500.0,0.00016438,2]
[327175309,1715878241254,-500.0,0.00016438,2]
[327175311,1715878241263,-538.51181528,0.00016438,2]
[327175313,1715878241273,-500.0,0.00016438,2]
[327175315,1715878241283,-500.0,0.00016438,2]
[327175317,1715878241292,-3938.12,0.00016438,2]
[327175319,1715878241302,-500.0,0.00016438,4]
[327175321,1715878241311,-500.0,0.00016438,2]
[327175323,1715878241320,-365.87297183,0.00016438,2]
[327175325,1715878241329,-620.15927945,0.00016438,2]
[327175327,1715878241339,-500.0,0.00016438,2]
[327175329,1715878241348,-500.0,0.00016438,2]
[327175331,1715878241358,-1331.7,0.00016438,2]
[327175333,1715878241367,-500.0,0.00016438,2]
[327175335,1715878241377,-500.0,0.00016438,2]
[327175337,1715878241386,-500.0,0.00016438,2]
[327175339,1715878241395,-500.0,0.00016438,2]
[327175341,1715878241404,-500.0,0.00016438,2]
[327175343,1715878241413,-500.0,0.00016438,2]
[327175345,1715878241423,-151.0,0.00016438,2]
[327175347,1715878241432,-500.0,0.00016438,2]
[327175349,1715878241441,-151.0,0.00016438,2]
[327175351,1715878241450,-151.0,0.00016438,2]
[327175353,1715878241459,-500.0,0.00016438,2]
[327175355,1715878241468,-500.0,0.00016438,2]
[327175357,1715878241477,-151.0,0.00016438,2]
[327175359,1715878241487,-151.0,0.00016438,2]
[327175361,1715878241496,-151.0,0.00016438,2]
[327175363,1715878241505,-151.0,0.00016438,2]
[327175365,1715878241514,-151.0,0.00016438,2]
[327175367,1715878241525,-1437.73,0.00016438,2]
[327175369,1715878241534,-500.0,0.00016438,2]
[327175371,1715878241543,-500.0,0.00016438,2]
[327175373,1715878241553,-500.0,0.00016438,2]
[327175375,1715878241564,-1309.07,0.00016438,2]
[327175377,1715878241573,-500.0,0.00016438,2]
[327175379,1715878241582,-500.0,0.00016438,2]
[327175381,1715878241590,-500.0,0.00016438,2]
[327175383,1715878241600,-500.0,0.00016438,2]
[327175385,1715878241609,-893.71,0.00016438,2]
[327175387,1715878241618,-500.0,0.00016438,2]
[327175389,1715878241627,-559.63,0.00016438,2]
[327175391,1715878241636,-500.0,0.00016438,2]
[327175392,1715878241645,-500.0,0.00016438,2]
[327175394,1715878241655,-500.0,0.00016438,2]
[327175396,1715878241664,-827.99,0.00016438,2]
[327175398,1715878241673,-500.0,0.00016438,2]
[327175400,1715878241682,-500.0,0.00016438,2]
[327175402,1715878241691,-151.0,0.00016438,2]
[327175404,1715878241701,-151.0,0.00016438,2]
[327175406,1715878241710,-500.0,0.00016438,2]
[327175408,1715878241720,-500.0,0.00016438,2]
[327175410,1715878241729,-500.0,0.00016438,2]
[327175412,1715878241738,-500.0,0.00016438,2]
[327175414,1715878241748,-500.0,0.00016438,2]
[327175416,1715878241757,-303.23974198,0.00016438,2]
[327175419,1715878241768,-2824.61,0.00016438,2]
[327175421,1715878241783,-500.0,0.00016438,2]
[327175422,1715878241791,-500.0,0.00016438,2]
[327175424,1715878241800,-500.0,0.00016438,2]
[327175426,1715878241810,-500.0,0.00016438,2]
[327175429,1715878241820,-500.0,0.00016438,2]
[327175430,1715878241830,-500.0,0.00016438,2]
[327175432,1715878241842,-564.48,0.00016438,2]
[327175434,1715878241852,-622.05,0.00016438,2]
[327175436,1715878241864,-151.0,0.00016438,2]
[327175438,1715878241874,-151.0,0.00016438,2]
[327175441,1715878241883,-151.0,0.00016438,2]
[327175442,1715878241892,-151.0,0.00016438,2]
[327175444,1715878241901,-218.453236,0.00016438,2]
[327175446,1715878241910,-500.0,0.00016438,2]
[327175448,1715878241919,-556.4,0.00016438,2]
[327175450,1715878241928,-500.0,0.00016438,2]
[327175452,1715878241937,-653.44,0.00016438,2]
[327175454,1715878241947,-856.99,0.00016438,2]
[327175456,1715878241956,-500.0,0.00016438,2]
[327175458,1715878241965,-3261.82,0.00016438,2]
[327175460,1715878241974,-500.0,0.00016438,2]
[327175462,1715878241983,-405.348389,0.00016438,2]
[327175464,1715878241992,-500.0,0.00016438,2]
[327175466,1715878242001,-642.27,0.00016438,2]
[327175468,1715878242011,-405.348389,0.00016438,2]
[327175470,1715878242022,-405.348389,0.00016438,2]
[327175472,1715878242031,-405.348389,0.00016438,2]
[327175474,1715878242040,-500.0,0.00016438,2]
[327175476,1715878242049,-405.348389,0.00016438,2]
[327175478,1715878242058,-405.348389,0.00016438,2]
[327175480,1715878242067,-500.0,0.00016438,2]
[327175482,1715878242076,-405.348389,0.00016438,2]
[327175484,1715878242086,-405.348389,0.00016438,2]
[327175486,1715878242095,-500.0,0.00016438,2]
[327175488,1715878242105,-405.348389,0.00016438,2]
[327175490,1715878242114,-405.348389,0.00016438,2]
[327175492,1715878242123,-500.0,0.00016438,2]
[327175494,1715878242132,-405.348389,0.00016438,2]
[327175496,1715878242141,-500.0,0.00016438,2]
[327175498,1715878242151,-405.348389,0.00016438,2]
[327175500,1715878242160,-405.348389,0.00016438,2]
[327175502,1715878242169,-405.348389,0.00016438,2]
[327175504,1715878242178,-405.348389,0.00016438,2]
[327175506,1715878242187,-405.348395,0.00016438,2]
[327175508,1715878242197,-1412.14,0.00016438,2]
[327175510,1715878242206,-1000.0,0.00016438,2]
[327175512,1715878242215,-500.0,0.00016438,2]
[327175514,1715878242224,-500.0,0.00016438,2]
[327175516,1715878242234,-500.0,0.00016438,2]
[327175518,1715878242243,-317.033068,0.00016438,2]
[327175520,1715878242252,-317.033068,0.00016438,2]
[327175522,1715878242262,-500.0,0.00016438,2]
[327175524,1715878242272,-317.033068,0.00016438,2]
[327175526,1715878242282,-317.033068,0.00016438,2]
[327175528,1715878242291,-317.033068,0.00016438,2]
[327175530,1715878242300,-500.0,0.00016438,2]
[327175532,1715878242310,-105.98946085,0.00016438,2]
[327175583,1715878242679,-394.01053915,0.00016438,2]
[327175585,1715878242689,-317.033068,0.00016438,2]
[327175587,1715878242699,-151.0,0.00016438,2]
[327175589,1715878242708,-138.11276285,0.00016438,2]
[327175604,1715878242784,-178.92030515,0.00016438,2]
[327175606,1715878242793,-317.033068,0.00016438,2]
[327175608,1715878242802,-151.0,0.00016438,2]
[327175610,1715878242811,-113.70140383,0.00016438,2]
[327175901,1715878247121,-220.828338,0.00016436,2]
[327175902,1715878247130,-151.0,0.00016436,2]
[327175903,1715878247140,-37.29859617,0.00016438,2]
[327175904,1715878247149,-151.0,0.00016438,2]
[327175905,1715878247159,-151.0,0.00016438,2]
[327175906,1715878247169,-500.0,0.00016438,2]
[327175907,1715878247178,-92.37306583,0.00016438,2]
[327175920,1715879233241,-269.331606,0.00015998,2]
[327175921,1715879237152,-61.40436389,0.00015998,2]
[327175922,1715879237173,-151.66135345,0.00015998,2]
[327175954,1715879433082,-238.60242952,0.00015998,2]
[327175955,1715879433092,-395.03673245,0.00015999,2]
[327175956,1715879433102,-1920.76083803,0.00016,2]
[327175957,1715879433114,-5326.45501138,0.00016,2]
[327175958,1715879433190,-316.23475701,0.00016,2]
[327175997,1715879438385,-47436.54939358,0.00016,2]
[327175999,1715879438394,-150.0,0.00016166,2]
[327176001,1715879438404,-625.98925261,0.00016273,2]
[327176003,1715879438414,-416.87621729,0.00016275,2]
[327176005,1715879438424,-204.0,0.0001643,2]
[327176007,1715879438433,-2630.07945824,0.00016436,2]
[327176009,1715879438442,-583.42484553,0.00016436,2]
[327176011,1715879438452,-701.3012313,0.00016436,2]
[327176013,1715879438462,-410.1822052,0.00016436,2]
[327176015,1715879438471,-727.18904065,0.00016437,2]
[327176017,1715879438480,-11382.47755443,0.00016437,2]
[327176021,1715879438507,-6303.25505259,0.00016437,2]
[327176023,1715879438518,-5362.56572016,0.00016437,2]
[327176025,1715879438528,-16645.50987269,0.00016438,3]
[327176359,1715879442288,-6536.5571,0.00016438,3]
[327176479,1715879443380,-2596.32034903,0.00016438,3]
[327177864,1715879486083,154.82968734,9.999e-05,2]
[327177867,1715879517592,47.01797598,9.999e-05,2]
[327177868,1715879517615,153.46815222,9.999e-05,2]
[327177869,1715879517642,321.94855256,9.999e-05,2]
[327177872,1715880090009,523.0662339,9.999e-05,2]
[327177873,1715880169170,768.51763577,0.00012327,2]
[327177874,1715880193344,1135.9167504,0.00012327,2]
[327177875,1715880264347,273.37336231,9.9e-05,2]
[327177876,1715880272576,273.37336231,9.9e-05,2]
[327177877,1715880281518,273.37336231,9.9e-05,2]
[327177878,1715880289616,273.37336231,9.9e-05,2]
[327177881,1715880394077,1500.0,0.00015,2]
[327177882,1715880433274,487.41245436,9.999e-05,2]
[327177883,1715880447206,-206.41759615,0.0001625,2]
[327177940,1715880634123,-292.94,0.00016004,2]
[327177942,1715880634136,-327.06309125,0.00016004,2]
[327177944,1715880634147,-592.58456482,0.00016273,2]
[327177946,1715880634156,-735.03972905,0.00016336,2]
[327177948,1715880634166,-201.84766332,0.00016338,2]
[327177950,1715880634175,-3715.55722766,0.00016368,2]
[327177952,1715880634185,-19455.0804747,0.00016435,2]
[327177954,1715880634195,-500.0,0.00016436,2]
[327177955,1715880634205,-216.51934113,0.00016436,2]
[327177957,1715880634215,-3057.36000381,0.00016436,2]
[327177959,1715880634224,-206.84585849,0.00016436,2]
[327177961,1715880634234,-154.88617718,0.00016436,2]
[327177963,1715880634245,-1894.38518573,0.00016436,2]
[327177965,1715880634255,-260.30623976,0.00016436,2]
[327177967,1715880634266,-382.78628024,0.00016436,2]
[327177969,1715880634276,-283.5045588,0.00016436,2]
[327177971,1715880634286,-292.42455169,0.00016436,2]
[327177973,1715880634297,-154.79876161,0.00016436,2]
[327177975,1715880634308,-154.81422293,0.00016436,2]
[327177977,1715880634318,-328.22139918,0.00016436,2]
[327178000,1715880634558,-10050.19345849,0.00016437,2]
[327178604,1715880641036,-4451.99862579,0.00016437,2]
[327178606,1715880641045,-2032.29037421,0.00016438,3]
[327178608,1715880641057,-20113.60500069,0.00016438,3]
[327178610,1715880641067,-8324.22063052,0.00016438,3]
[327178612,1715880641077,-159.9879374,0.00016438,2]
[327178614,1715880641088,-191.37688613,0.00016438,2]
[327178616,1715880641097,-219.31867063,0.00016438,2]
[327178618,1715880641106,-5300.36224376,0.00016438,2]
[327178620,1715880641116,-500.0,0.00016438,2]
[327178622,1715880641125,-500.0,0.00016438,2]
[327178624,1715880641134,-509.87601259,0.00016438,2]
[327178626,1715880641144,-261.08842705,0.00016438,2]
[327178628,1715880641153,-500.0,0.00016438,2]
[327178630,1715880641163,-500.0,0.00016438,2]
[327178632,1715880641172,-1127.02,0.00016438,2]
[327178634,1715880641181,-500.0,0.00016438,2]
[327178636,1715880641191,-502.99325271,0.00016438,2]
[327178638,1715880641200,-500.0,0.00016438,2]
[327178640,1715880641210,-563.9556779,0.00016438,2]
[327178642,1715880641220,-500.0,0.00016438,2]
[327178644,1715880641230,-500.0,0.00016438,2]
[327178646,1715880641239,-500.0,0.00016438,2]
[327178647,1715880641249,-500.0,0.00016438,2]
[327178649,1715880641259,-500.0,0.00016438,2]
[327178651,1715880641272,-500.0,0.00016438,2]
[327178654,1715880641282,-500.0,0.00016438,2]
[327178655,1715880641291,-500.0,0.00016438,2]
[327178658,1715880641301,-292.37560477,0.00016438,2]
[327178660,1715880641311,-500.0,0.00016438,2]
[327178662,1715880641321,-500.0,0.00016438,2]
[327178664,1715880641330,-500.0,0.00016438,2]
[327178666,1715880641340,-500.0,0.00016438,2]
[327178668,1715880641349,-500.0,0.00016438,2]
[327178670,1715880641359,-500.0,0.00016438,2]
[327178672,1715880641370,-500.0,0.00016438,2]
[327178674,1715880641379,-500.0,0.00016438,2]
[327178676,1715880641388,-500.0,0.00016438,2]
[327178678,1715880641399,-480.15392624,0.00016438,2]
[327178680,1715880641408,-500.0,0.00016438,2]
[327178682,1715880641418,-500.0,0.00016438,2]
[327178684,1715880641427,-500.0,0.00016438,2]
[327178686,1715880641436,-500.0,0.00016438,2]
[327178687,1715880641447,-500.0,0.00016438,2]
[327178689,1715880641457,-571.55,0.00016438,2]
[327178691,1715880641466,-500.0,0.00016438,2]
[327178694,1715880641476,-588.65,0.00016438,2]
[327178695,1715880641485,-1178.72,0.00016438,2]
[327178697,1715880641494,-500.0,0.00016438,2]
[327178699,1715880641504,-500.0,0.00016438,2]
[327178701,1715880641515,-500.0,0.00016438,2]
[327178703,1715880641525,-126.99384563,0.00016438,2]
[327178812,1715880642662,-373.00615437,0.00016438,2]
[327178815,1715880642672,-500.0,0.00016438,2]
[327178817,1715880642682,-500.0,0.00016438,2]
[327178819,1715880642692,-500.0,0.00016438,2]
[327178821,1715880642701,-500.0,0.00016438,2]
[327178823,1715880642711,-980.02,0.00016438,2]
[327178825,1715880642721,-500.0,0.00016438,2]
[327178827,1715880642731,-500.0,0.00016438,2]
[327178829,1715880642741,-159.66382287,0.00016438,2]
[327178831,1715880642751,-500.0,0.00016438,2]
[327178833,1715880642760,-614.53,0.00016438,2]
[327178835,1715880642773,-500.0,0.00016438,2]
[327178837,1715880642783,-500.0,0.00016438,2]
[327178839,1715880642793,-500.0,0.00016438,2]
[327178841,1715880642803,-500.0,0.00016438,2]
[327178843,1715880642813,-500.0,0.00016438,2]
[327178845,1715880642822,-221.28872477,0.00016438,2]
[327178847,1715880642833,-500.0,0.00016438,2]
[327178849,1715880642843,-500.0,0.00016438,2]
[327178851,1715880642852,-500.0,0.00016438,2]
[327178853,1715880642862,-500.0,0.00016438,2]
[327178855,1715880642872,-500.0,0.00016438,2]
[327178857,1715880642881,-510.42,0.00016438,2]
[327178859,1715880642891,-500.0,0.00016438,2]
[327178861,1715880642900,-500.0,0.00016438,2]
[327178863,1715880642910,-500.0,0.00016438,2]
[327178865,1715880642919,-500.0,0.00016438,2]
[327178867,1715880642929,-500.0,0.00016438,2]
[327178869,1715880642939,-107.66032562,0.00016438,2]
[327178871,1715880642951,-392.33967438,0.00016438,2]
[327178873,1715880642962,-500.0,0.00016438,2]
[327178875,1715880642971,-500.0,0.00016438,2]
[327178877,1715880642981,-802.02,0.00016438,2]
[327178879,1715880642991,-500.0,0.00016438,2]
[327178881,1715880643000,-500.0,0.00016438,2]
[327178883,1715880643010,-500.0,0.00016438,2]
[327178885,1715880643023,-500.0,0.00016438,2]
[327178887,1715880643032,-471.2875251,0.00016438,2]
[327178891,1715880643042,-840.1,0.00016438,2]
[327178894,1715880643051,-636.74,0.00016438,2]
[327178896,1715880643060,-500.0,0.00016438,2]
[327178899,1715880643070,-500.0,0.00016438,2]
[327178902,1715880643079,-500.0,0.00016438,2]
[327178904,1715880643089,-500.0,0.00016438,2]
[327178906,1715880643099,-500.0,0.00016438,2]
[327178908,1715880643108,-1458.68,0.00016438,2]
[327178910,1715880643117,-500.0,0.00016438,2]
[327178912,1715880643127,-500.0,0.00016438,2]
[327178915,1715880643137,-558.07,0.00016438,2]
[327178918,1715880643146,-151.0,0.00016438,2]
[327178920,1715880643155,-516.89,0.00016438,2]
[327178922,1715880643164,-500.0,0.00016438,2]
[327178924,1715880643174,-500.0,0.00016438,2]
[327178927,1715880643183,-500.0,0.00016438,2]
[327178930,1715880643193,-636.45,0.00016438,2]
[327178959,1715880643364,-500.0,0.00016438,2]
[327178961,1715880643374,-500.0,0.00016438,2]
[327178963,1715880643383,-500.0,0.00016438,2]
[327178966,1715880643393,-500.0,0.00016438,2]
[327178967,1715880643402,-500.0,0.00016438,2]
[327178969,1715880643411,-517.87,0.00016438,2]
[327178971,1715880643420,-1210.49,0.00016438,2]
[327178973,1715880643429,-500.0,0.00016438,2]
[327178975,1715880643438,-134.61662357,0.00016438,2]
[327178978,1715880643451,-365.38337643,0.00016438,2]
[327178979,1715880643460,-972.69,0.00016438,2]
[327178981,1715880643470,-500.0,0.00016438,2]
[327178983,1715880643479,-861.94,0.00016438,2]
[327178985,1715880643488,-500.0,0.00016438,2]
[327178987,1715880643497,-500.0,0.00016438,2]
[327178989,1715880643507,-616.89,0.00016438,2]
[327178991,1715880643519,-500.0,0.00016438,2]
[327178993,1715880643531,-770.58,0.00016438,2]
[327178995,1715880643540,-500.0,0.00016438,2]
[327178997,1715880643549,-500.0,0.00016438,2]
[327178999,1715880643560,-530.43,0.00016438,2]
[327179001,1715880643569,-500.0,0.00016438,2]
[327179003,1715880643578,-500.0,0.00016438,2]
[327179005,1715880643587,-500.98971911,0.00016438,2]
[327179007,1715880643596,-500.0,0.00016438,2]
[327179009,1715880643606,-500.0,0.00016438,2]
[327179011,1715880643616,-500.0,0.00016438,2]
[327179013,1715880643624,-500.0,0.00016438,2]
[327179015,1715880643634,-500.0,0.00016438,2]
[327179017,1715880643643,-500.0,0.00016438,2]
[327179019,1715880643652,-500.0,0.00016438,2]
[327179021,1715880643661,-151.0,0.00016438,2]
[327179023,1715880643670,-500.0,0.00016438,2]
[327179025,1715880643679,-151.0,0.00016438,2]
[327179027,1715880643688,-797.79,0.00016438,2]
[327179029,1715880643697,-1031.26,0.00016438,2]
[327179031,1715880643707,-500.0,0.00016438,2]
[327179033,1715880643716,-500.0,0.00016438,2]
[327179035,1715880643726,-543.56614702,0.00016438,2]
[327179037,1715880643734,-500.0,0.00016438,2]
[327179039,1715880643744,-500.0,0.00016438,2]
[327179041,1715880643753,-500.0,0.00016438,2]
[327179043,1715880643762,-500.0,0.00016438,2]
[327179045,1715880643774,-500.0,0.00016438,2]
[327179047,1715880643783,-500.0,0.00016438,2]
[327179049,1715880643792,-500.0,0.00016438,2]
[327179051,1715880643802,-500.0,0.00016438,2]
[327179053,1715880643811,-727.81,0.00016438,2]
[327179055,1715880643820,-500.0,0.00016438,2]
[327179057,1715880643829,-542.4922578,0.00016438,2]
[327179059,1715880643838,-500.0,0.00016438,2]
[327179061,1715880643848,-2107.62,0.00016438,2]
[327179063,1715880643857,-986.73,0.00016438,2]
[327179065,1715880643866,-500.0,0.00016438,2]
[327179067,1715880643875,-500.0,0.00016438,2]
[327179069,1715880643883,-500.0,0.00016438,2]
[327179071,1715880643892,-701.57,0.00016438,2]
[327179073,1715880643902,-585.77,0.00016438,2]
[327179075,1715880643911,-522.63,0.00016438,2]
[327179077,1715880643920,-540.20290148,0.00016438,2]
[327179079,1715880643929,-512.60242188,0.00016438,2]
[327179081,1715880643938,-1000.0,0.00016438,2]
[327179083,1715880643948,-500.0,0.00016438,2]
[327179085,1715880643958,-500.0,0.00016438,2]
[327179087,1715880643967,-947.37,0.00016438,2]
[327179089,1715880643976,-500.0,0.00016438,2]
[327179091,1715880643985,-2625.24,0.00016438,2]
[327179093,1715880643994,-1811.44,0.00016438,2]
[327179095,1715880644003,-500.0,0.00016438,2]
[327179097,1715880644012,-500.0,0.00016438,2]
[327179098,1715880644024,-500.0,0.00016438,2]
[327179100,1715880644033,-500.0,0.00016438,2]
[327179102,1715880644042,-500.0,0.00016438,2]
[327179104,1715880644052,-500.0,0.00016438,2]
[327179106,1715880644061,-1331.97,0.00016438,2]
[327179108,1715880644070,-500.0,0.00016438,2]
[327179110,1715880644079,-2070.89,0.00016438,2]
[327179112,1715880644088,-500.0,0.00016438,2]
[327179114,1715880644097,-500.0,0.00016438,2]
[327179116,1715880644107,-500.0,0.00016438,2]
[327179118,1715880644116,-500.0,0.00016438,2]
[327179120,1715880644125,-500.0,0.00016438,2]
[327179122,1715880644134,-900.96,0.00016438,2]
[327179124,1715880644143,-500.0,0.00016438,2]
[327179126,1715880644152,-526.20334919,0.00016438,2]
[327179128,1715880644161,-300.74977296,0.00016438,2]
[327179130,1715880644170,-1317.7,0.00016438,2]
[327179132,1715880644179,-500.0,0.00016438,2]
[327179134,1715880644188,-836.5,0.00016438,2]
[327179136,1715880644198,-560.72,0.00016438,2]
[327179138,1715880644207,-500.0,0.00016438,2]
[327179139,1715880644217,-522.47091952,0.00016438,2]
[327179141,1715880644226,-500.0,0.00016438,2]
[327179143,1715880644236,-2853.64,0.00016438,2]
[327179145,1715880644245,-500.0,0.00016438,2]
[327179147,1715880644254,-518.31229479,0.00016438,2]
[327179149,1715880644264,-500.0,0.00016438,2]
[327179151,1715880644275,-500.0,0.00016438,2]
[327179153,1715880644284,-500.0,0.00016438,2]
[327179155,1715880644293,-973.64,0.00016438,2]
[327179157,1715880644302,-500.0,0.00016438,2]
[327179158,1715880644312,-500.0,0.00016438,2]
[327179160,1715880644321,-500.0,0.00016438,2]
[327179162,1715880644330,-151.0,0.00016438,2]
[327179164,1715880644340,-151.0,0.00016438,2]
[327179166,1715880644349,-151.0,0.00016438,2]
[327179168,1715880644358,-500.0,0.00016438,2]
[327179170,1715880644367,-596.13,0.00016438,2]
[327179172,1715880644376,-500.0,0.00016438,2]
[327179174,1715880644385,-3295.34,0.00016438,2]
[327179176,1715880644394,-500.0,0.00016438,2]
[327179178,1715880644403,-500.0,0.00016438,2]
[327179180,1715880644412,-590.59,0.00016438,2]
[327179181,1715880644422,-500.0,0.00016438,2]
[327179183,1715880644431,-1514.87,0.00016438,2]